bitfinex-derivatives/quotes_SOLF0:USTF0_20241101
["timestamp","ask_amount","ask_price","bid_price","bid_amount"]
[1730475797179,3.0001,166.7,166.66,3.0008]
[1730475797473,3.0001,166.7,166.58,7.38]
[1730475798171,3.001,166.66,166.58,7.38]
[1730475798470,3.001,166.66,166.57,37.27055639]
[1730475798471,37.27055639,166.64,166.57,3.0023]
[1730475798676,37.27055639,166.66,166.55,2.6287]
[1730475798881,37.27055639,166.69,166.55,2.6287]
[1730475799176,37.27055639,166.69,166.63,3.0014]
[1730475799177,3.0008,166.67,166.63,3.0014]
[1730475799566,3.0008,166.67,166.55,2.6287]
[1730475799764,3.0008,166.67,166.64,3.0012]
[1730475799963,3.0008,166.67,166.55,2.6287]
[1730475799964,3.0002,166.7,166.57,37.27055639]
[1730475800167,37.27055639,166.72,166.67,3.0005]
[1730475800372,37.27055639,166.72,166.61,7.38]
[1730475800770,37.27055639,166.72,166.65,3.0009]
[1730475801069,3.0004,166.69,166.61,7.38]
[1730475801275,37.27055639,166.72,166.66,3.0007]
[1730475801576,3.0001,166.7,166.61,7.38]
[1730475801871,37.27055639,166.72,166.61,7.38]
[1730475802169,37.27055639,166.74,166.62,37.27055639]
[1730475802870,2.9995,166.72,166.62,37.27055639]
[1730475803077,37.27055639,166.74,166.62,37.27055639]
[1730475803275,3.0001,166.69,166.61,7.38]
[1730475803579,37.27055639,166.74,166.67,3.0002]
[1730475803774,37.27055639,166.74,166.61,7.38]
[1730475804072,2.9998,166.71,166.61,7.38]
[1730475805867,37.27055639,166.74,166.61,7.38]
[1730475806080,2.9992,166.74,166.62,37.27055639]
[1730475806266,37.27055639,166.85,166.65,37.27055639]
[1730475806267,37.27055639,166.8,166.65,37.27055639]
[1730475806779,37.27055639,166.8,166.7,2.9998]
[1730475807277,2.9991,166.75,166.71,2.9996]
[1730475807471,2.9991,166.75,166.65,37.27055639]
[1730475807873,2.9991,166.75,166.68,3.0002]
[1730475808179,37.27055639,166.8,166.65,37.27055639]
[1730475808380,37.27055639,166.8,166.73,2.9992]
[1730475808676,37.27055639,166.8,166.65,37.27055639]
[1730475808677,2.9995,166.72,166.65,7.06]
[1730475808870,37.27055639,166.75,166.65,7.06]
[1730475809070,37.27055639,166.75,166.69,2.9998]
[1730475809280,2.9996,166.71,166.63,7.06]
[1730475809480,37.27055639,166.75,166.63,7.06]
[1730475809777,2.9995,166.72,166.66,3.0004]
[1730475809980,37.27055639,166.85,166.65,37.27055639]
[1730475809981,37.27055639,166.81,166.65,37.27055639]
[1730475810983,2.9988,166.76,166.72,2.9993]
[1730475811278,37.27055639,166.85,166.65,37.27055639]
[1730475811279,37.27055639,166.78,166.65,37.27055639]
[1730475811479,37.27055639,166.78,166.68,3.0]
[1730475811683,37.27055639,166.78,166.63,7.06]
[1730475812179,2.9996,166.72,166.63,7.06]
[1730475812377,37.27055639,166.78,166.63,7.06]
[1730475812572,37.27055639,166.8,166.65,37.27055639]
[1730475812771,37.27055639,166.8,166.63,7.06]
[1730475812772,37.27055639,166.8,166.68,37.27055639]
[1730475813184,2.9986,166.77,166.74,2.999]
[1730475813378,37.27055639,166.8,166.65,37.27055639]
[1730475813683,37.27055639,166.8,166.35,572.26594244]
[1730475813684,37.27055639,166.7,166.57,2.665]
[1730475813983,37.27055639,166.72,166.59,37.27055639]
[1730475814388,3.0001,166.69,166.59,37.27055639]
[1730475814580,37.27055639,166.72,166.59,37.27055639]
[1730475815080,37.27055639,166.72,166.65,3.0007]
[1730475815481,3.0001,166.69,166.65,3.0007]
[1730475816281,7.06,166.76,166.57,2.665]
[1730475816282,37.27055639,166.75,166.62,37.27055639]
[1730475816482,37.27055639,166.75,166.62,44.33055639]
[1730475816682,37.27055639,166.78,166.62,44.33055639]
[1730475817001,37.27055639,166.78,166.64,37.27055639]
[1730475817180,37.27055639,166.75,166.62,44.33055639]
[1730475817382,2.9999,166.7,166.66,3.0005]
[1730475818585,37.27055639,166.78,166.64,37.27055639]
[1730475818788,37.27055639,166.81,166.67,37.27055639]
[1730475819284,37.27055639,166.83,166.68,2.6227]
[1730475819683,2.999,166.75,166.71,2.9996]
[1730475819885,37.27055639,166.8,166.68,2.6227]
[1730475820192,2.9987,166.77,166.71,2.9995]
[1730475820488,37.27055639,166.8,166.68,2.6227]
[1730475820678,37.27055639,166.83,166.68,2.6227]
[1730475821084,37.27055639,166.83,166.7,37.27055639]
[1730475821283,37.27055639,166.83,166.7,44.01055639]
[1730475821483,2.9982,166.79,166.76,5.38398333]
[1730475821689,37.27055639,166.83,166.76,5.38398333]
[1730475823189,37.27055639,166.86,166.76,5.38398333]
[1730475823789,37.27055639,166.91,166.76,5.38398333]
[1730475824197,37.27055639,166.91,166.76,6.69048333]
[1730475824393,2.9973,166.85,166.81,2.9977]
[1730475824692,66.76563924,166.88,166.78,6.74]
[1730475825090,2.9974,166.84,166.8,2.9979]
[1730475825293,66.76563924,166.88,166.82,5.38398333]
[1730475825694,2.9974,166.84,166.82,5.38398333]
[1730475826096,29.49508285,166.88,166.82,5.38398333]
[1730475826292,2.9973,166.84,166.82,5.38398333]
[1730475826500,29.49508285,166.88,166.82,5.38398333]
[1730475827104,2.9974,166.84,166.82,5.38398333]
[1730475827598,29.49508285,166.88,166.82,5.38398333]
[1730475827799,66.76563924,166.88,166.82,5.38398333]
[1730475827999,37.27055639,166.86,166.82,5.38398333]
[1730475828231,37.27055639,166.83,166.68,10.6537]
[1730475828401,37.27055639,166.85,166.68,3.9137]
[1730475828402,37.27055639,166.79,166.68,3.9137]
[1730475828806,2.9996,166.72,166.68,3.9137]
[1730475829005,37.27055639,166.79,166.68,6.9137]
[1730475829304,3.0003,166.68,166.63,6.74]
[1730475829497,37.27055639,166.74,166.63,6.74]
[1730475829905,2.9998,166.71,166.63,6.74]
[1730475830707,3.0001,166.69,166.63,6.74]
[1730475830903,37.27055639,166.71,166.6,2.5668]
[1730475831304,3.0008,166.65,166.6,5.5682]
[1730475832213,37.27055639,166.66,166.54,6.74]
[1730475832407,37.27055639,166.63,166.51,6.74]
[1730475832709,3.0023,166.57,166.51,6.74]
[1730475833504,3.0016,166.6,166.55,3.0025]
[1730475833704,37.27055639,166.68,166.53,37.27055639]
[1730475833906,37.27055639,166.71,166.56,37.27055639]
[1730475834108,3.0006,166.66,166.61,3.0013]
[1730475834315,37.27055639,166.71,166.61,3.0013]
[1730475834500,3.0006,166.66,166.61,3.0013]
[1730475834704,37.27055639,166.71,166.59,6.74]
[1730475834912,6.74,166.73,166.49,1.3505]
[1730475834913,37.27055639,166.65,166.53,37.27055639]
[1730475835212,37.27055639,166.65,166.49,1.3505]
[1730475835213,3.0019,166.59,166.51,6.74]
[1730475836016,37.27055639,166.62,166.51,6.74]
[1730475836312,37.27055639,166.62,166.5,44.01055639]
[1730475836507,9.75356822,166.73,166.5,44.01055639]
[1730475836508,37.27055639,166.65,166.55,3.0024]
[1730475836904,37.27055639,166.65,166.5,44.01055639]
[1730475837616,37.27055639,166.63,166.5,6.74]
[1730475837808,37.27055639,166.63,166.49,1.3505]
[1730475838112,3.0013,166.62,166.58,3.0019]
[1730475838512,37.27055639,166.68,166.53,37.27055639]
[1730475838902,3.0011,166.63,166.53,37.27055639]
[1730475839102,37.27055639,166.68,166.53,37.27055639]
[1730475839711,37.27055639,166.68,166.58,3.0018]
[1730475840107,37.27055639,166.65,166.51,37.27055639]
[1730475840314,37.27055639,166.65,166.51,44.01055639]
[1730475840713,3.0032,166.52,166.48,5.6573]
[1730475840911,37.27055639,166.57,166.45,49.94]
[1730475840912,37.27055639,166.57,166.45,43.2]
[1730475841419,3.0031,166.52,166.48,3.0037]
[1730475841821,37.27055639,166.57,166.45,43.2]
[1730475842020,3.0028,166.54,166.5,3.0032]
[1730475842520,37.27055639,166.57,166.46,1.2785]
[1730475842718,37.27055639,166.57,166.48,3.0036]
[1730475843122,3.0037,166.49,166.46,1.2785]
[1730475843317,37.27055639,166.51,166.43,1.3019]
[1730475843521,37.27055639,166.51,166.38,6.74]
[1730475843818,3.0039,166.48,166.42,3.0047]
[1730475844022,37.27055639,166.51,166.42,3.0047]
[1730475844516,37.27055639,166.49,166.4,3.0051]
[1730475845220,37.27055639,166.49,166.36,6.74]
[1730475845817,37.27055639,166.51,166.37,37.27055639]
[1730475846016,6.0038,166.59,166.4,37.27055639]
[1730475846017,37.27055639,166.54,166.4,37.27055639]
[1730475846321,12.7438,166.59,166.38,6.74]
[1730475846322,37.27055639,166.51,166.38,6.74]
[1730475846626,37.27055639,166.51,166.42,3.0047]
[1730475846923,37.27055639,166.51,166.38,6.74]
[1730475847115,3.0044,166.45,166.41,3.0049]
[1730475847309,37.27055639,166.49,166.36,1.2671]
[1730475847514,37.27055639,166.49,166.37,6.54]
[1730475847719,3.0044,166.45,166.4,3.005]
[1730475848319,3.0045,166.44,166.4,3.005]
[1730475848623,37.27055639,166.56,166.41,37.27055639]
[1730475848819,37.27055639,166.56,166.43,37.27055639]
[1730475849119,37.27055639,166.56,166.37,6.54]
[1730475849120,37.27055639,166.54,166.45,3.0042]
[1730475849324,37.27055639,166.54,166.38,37.27055639]
[1730475849525,37.27055639,166.51,166.39,6.54]
[1730475850717,37.27055639,166.54,166.46,3.0041]
[1730475851126,3.0037,166.49,166.39,6.54]
[1730475851422,37.27055639,166.54,166.44,3.0044]
[1730475851627,3.0032,166.51,166.44,3.0044]
[1730475851831,37.27055639,166.54,166.39,6.54]
[1730475852722,37.27055639,166.51,166.39,6.54]
[1730475853131,3.0041,166.47,166.39,6.54]
[1730475853624,3.0046,166.44,166.39,6.54]
[1730475853930,37.27055639,166.49,166.36,1.2671]
[1730475854426,3.0046,166.44,166.36,7.8071]
[1730475854933,37.27055639,166.49,166.36,7.8071]
[1730475855127,3.0043,166.46,166.37,37.27055639]
[1730475855324,37.27055639,166.52,166.41,3.0049]
[1730475855531,37.27055639,166.52,166.37,37.27055639]
[1730475855931,37.27055639,166.52,166.43,3.0047]
[1730475856131,37.27055639,166.52,166.37,37.27055639]
[1730475856531,37.27055639,166.52,166.42,3.0048]
[1730475857034,37.27055639,166.52,166.37,37.27055639]
[1730475857332,267.27055639,166.68,166.42,37.27055639]
[1730475857333,37.27055639,166.57,166.42,37.27055639]
[1730475857530,37.27055639,166.6,166.45,37.27055639]
[1730475857732,37.27055639,166.65,166.5,37.27055639]
[1730475858037,3.0012,166.63,166.53,37.27055639]
[1730475858339,37.27055639,166.66,166.54,6.54]
[1730475858636,37.27055639,166.68,166.55,6.54]
[1730475858829,37.27055639,166.68,166.59,3.0017]
[1730475859135,37.27055639,166.68,166.56,6.54]
[1730475859136,37.27055639,166.68,166.56,43.81055639]
[1730475859436,37.27055639,166.72,166.59,37.27055639]
[1730475859735,6.54,166.76,166.59,37.27055639]
[1730475859736,37.27055639,166.74,166.59,37.27055639]
[1730475859935,6.54,166.76,166.56,6.54]
[1730475859936,6.54,166.76,166.61,37.27055639]
[1730475860128,37.27055639,166.77,166.64,37.27055639]
[1730475860436,37.27055639,166.8,166.65,6.54]
[1730475860738,37.27055639,166.8,166.64,37.27055639]
[1730475860925,37.27055639,166.77,166.68,3.0]
[1730475861231,2.9997,166.71,166.64,43.81055639]
[1730475861435,37.27055639,166.77,166.68,3.0001]
[1730475861636,37.27055639,166.77,166.64,43.81055639]
[1730475861838,2.9995,166.72,166.64,43.81055639]
[1730475862131,37.27055639,166.8,166.67,37.27055639]
[1730475862341,43.24,166.97,166.67,37.27055639]
[1730475862342,2.9989,166.76,166.67,37.27055639]
[1730475862832,2.9989,166.76,166.71,2.9995]
[1730475863033,2.9985,166.78,166.69,37.27055639]
[1730475863345,6.52,166.87,166.69,6.52]
[1730475863346,37.27055639,166.8,166.69,6.52]
[1730475863637,6.52,166.87,166.69,6.52]
[1730475863638,2.9983,166.79,166.69,6.52]
[1730475863836,37.27055639,166.82,166.7,2.9998]
[1730475864231,2.9989,166.76,166.69,6.52]
[1730475864434,37.27055639,166.82,166.72,2.9994]
[1730475864822,37.27055639,166.8,166.69,6.52]
[1730475865028,37.27055639,166.77,166.68,6.52]
[1730475865223,37.27055639,166.77,166.64,37.27055639]
[1730475865224,37.27055639,166.77,166.67,6.52]
[1730475865429,2.9995,166.72,166.67,6.52]
[1730475865634,37.27055639,166.8,166.67,6.52]
[1730475865830,2.9991,166.74,166.67,6.52]
[1730475866030,6.52,166.87,166.67,43.79055639]
[1730475866031,37.27055639,166.82,166.67,43.79055639]
[1730475866436,2.9984,166.78,166.69,37.27055639]
[1730475866633,37.27055639,166.85,166.69,37.27055639]
[1730475866828,37.27055639,166.85,166.72,37.27055639]
[1730475867030,37.27055639,166.85,166.73,2.7216]
[1730475867232,66.76563924,166.88,166.73,2.7216]
[1730475867538,2.9973,166.84,166.73,4.083]
[1730475867735,66.76563924,166.88,166.78,2.9983]
[1730475867938,66.76563924,166.88,166.73,4.083]
[1730475867939,37.27055639,166.85,166.73,4.083]
[1730475868341,37.27055639,166.82,166.73,2.7216]
[1730475868641,37.27055639,166.82,166.72,6.52]
[1730475869253,2.999,166.75,166.72,6.52]
[1730475869440,37.27055639,166.85,166.69,6.52]
[1730475869441,37.27055639,166.79,166.69,6.52]
[1730475869744,2.9998,166.71,166.66,10.603]
[1730475869945,2.9998,166.71,166.67,3.0003]
[1730475870134,2.9993,166.73,166.66,10.603]
[1730475870338,37.27055639,166.76,166.66,2.7216]
[1730475870551,37.27055639,166.71,166.61,6.52]
[1730475870737,37.27055639,166.68,166.61,6.52]
[1730475871045,37.27055639,166.68,166.56,6.52]
[1730475871446,3.0012,166.63,166.56,6.52]
[1730475871747,3.0012,166.63,166.58,3.0018]
[1730475871950,37.27055639,166.68,166.55,4.014]
[1730475872152,37.27055639,166.65,166.55,2.6565]
[1730475873045,3.0024,166.56,166.54,6.52]
[1730475873254,37.27055639,166.63,166.54,6.52]
[1730475873551,3.0026,166.55,166.49,6.52]
[1730475873741,37.27055639,166.6,166.5,3.0032]
[1730475874048,37.27055639,166.6,166.47,6.52]
[1730475874742,37.27055639,166.57,166.46,2.6279]
[1730475875146,3.003,166.52,166.48,3.0037]
[1730475875348,37.27055639,166.6,166.46,2.6279]
[1730475875651,37.27055639,166.6,166.52,3.003]
[1730475875652,3.0023,166.56,166.52,3.003]
[1730475875953,6.52,166.67,166.51,37.27055639]
[1730475875954,37.27055639,166.66,166.51,37.27055639]
[1730475876147,3.0017,166.6,166.55,3.0025]
[1730475876343,37.27055639,166.66,166.54,37.27055639]
[1730475876743,37.27055639,166.66,166.52,6.52]
[1730475877048,37.27055639,166.63,166.49,37.27055639]
[1730475877843,37.27055639,166.66,166.51,37.27055639]
[1730475878939,3.0015,166.61,166.56,3.0022]
[1730475879241,3.0015,166.61,166.51,37.27055639]
[1730475879445,3.0015,166.61,166.54,3.0027]
[1730475879642,6.52,166.67,166.54,37.27055639]
[1730475879950,37.27055639,166.71,166.63,3.0009]
[1730475880149,37.27055639,166.74,166.6,37.27055639]
[1730475880348,3.0,166.69,166.6,43.83055639]
[1730475880549,3.0,166.69,166.64,3.0008]
[1730475880944,37.27055639,166.8,166.66,37.27055639]
[1730475881341,2.9994,166.73,166.66,37.27055639]
[1730475881541,37.27055639,166.8,166.68,3.0]
[1730475881754,37.27055639,166.77,166.62,37.27055639]
[1730475882049,2.9994,166.73,166.62,37.27055639]
[1730475882251,37.27055639,166.77,166.65,37.27055639]
[1730475882453,37.27055639,166.8,166.65,37.27055639]
[1730475882655,2.9989,166.76,166.65,37.27055639]
[1730475882854,2.9989,166.76,166.71,2.9995]
[1730475883158,2.9989,166.76,166.68,6.56]
[1730475883344,2.9989,166.76,166.71,2.9994]
[1730475883849,2.9988,166.76,166.71,2.9994]
[1730475884247,2.9992,166.74,166.69,2.9999]
[1730475884444,37.27055639,166.8,166.68,6.56]
[1730475884852,2.9989,166.76,166.71,2.9996]
[1730475885048,37.27055639,166.8,166.71,2.9996]
[1730475885248,37.27055639,166.8,166.68,6.56]
[1730475885549,29.50700064,166.85,166.7,37.27055639]
[1730475885550,37.27055639,166.82,166.7,37.27055639]
[1730475885848,2.9983,166.79,166.73,2.9992]
[1730475886052,2.9983,166.79,166.7,38.56455639]
[1730475886245,37.27055639,166.82,166.7,38.56455639]
[1730475886650,37.27055639,166.82,166.75,2.9988]
[1730475887242,37.27055639,166.82,166.74,2.999]
[1730475887953,66.77755703,166.85,166.7,38.56455639]
[1730475888545,29.50700064,166.85,166.73,37.27055639]
[1730475888962,37.27055639,166.88,166.73,37.27055639]
[1730475889158,2.9972,166.85,166.8,2.998]
[1730475889351,37.27055639,166.9,166.78,37.27055639]
[1730475889650,5.9904,166.96,166.78,43.81055639]
[1730475889651,2.9969,166.87,166.78,43.81055639]
[1730475889847,37.27055639,166.93,166.78,43.81055639]
[1730475890046,37.27055639,166.95,166.84,37.27055639]
[1730475890351,37.27055639,166.98,166.84,37.27055639]
[1730475890551,37.27055639,166.98,166.85,2.6096]
[1730475890861,2.9956,166.94,166.86,6.54]
[1730475891040,2.9956,166.94,166.87,37.27055639]
[1730475891246,2.9951,166.97,166.93,2.9956]
[1730475891446,37.27055639,167.01,166.89,37.27055639]
[1730475891842,37.27055639,167.01,166.86,43.81055639]
[1730475892054,37.27055639,166.99,166.86,43.81055639]
[1730475892560,2.9956,166.94,166.89,2.9962]
[1730475892760,37.27055639,167.01,166.86,43.81055639]
[1730475892950,2.9953,166.96,166.91,2.9959]
[1730475893152,37.27055639,167.01,166.91,2.9959]
[1730475893550,37.27055639,167.01,166.86,37.27055639]
[1730475893751,6.54,167.05,166.85,2.6096]
[1730475893752,37.27055639,166.98,166.85,2.6096]
[1730475893950,2.9954,166.95,166.86,6.54]
[1730475894150,37.27055639,167.02,166.86,43.81055639]
[1730475894355,37.27055639,167.02,166.89,2.9962]
[1730475894563,37.27055639,167.05,166.9,37.27055639]
[1730475895257,37.27055639,167.05,166.92,37.27055639]
[1730475895459,2.9944,167.01,166.95,2.9951]
[1730475895672,37.27055639,167.05,166.94,6.54]
[1730475896059,2.9943,167.01,166.96,2.995]
[1730475896361,37.27055639,167.05,166.96,2.995]
[1730475896661,2.9944,167.01,166.96,2.995]
[1730475897063,2.9942,167.02,166.94,6.54]
[1730475898258,37.27055639,167.07,166.94,6.54]
[1730475898259,2.9944,167.01,166.94,6.54]
[1730475898467,37.27055639,167.07,166.94,6.54]
[1730475899370,37.27055639,167.07,166.98,2.9948]
[1730475899963,2.9942,167.02,166.98,2.9948]
[1730475900259,37.27055639,167.1,166.95,37.27055639]
[1730475900460,37.27055639,167.1,166.98,37.27055639]
[1730475900665,6.54,167.12,166.99,6.54]
[1730475900969,2.9932,167.07,166.99,9.2215]
[1730475901168,37.27055639,167.13,167.0,37.27055639]
[1730475901358,37.27055639,167.1,166.99,5.6761]
[1730475901557,37.27055639,167.1,166.94,37.27055639]
[1730475901558,2.9944,167.01,166.97,6.54]
[1730475901967,37.27055639,167.07,166.97,6.54]
[1730475901968,37.27055639,167.07,166.98,2.9947]
[1730475902269,37.27055639,167.07,166.94,37.27055639]
[1730475902566,37.27055639,167.07,166.95,6.54]
[1730475902884,2.9941,167.02,166.95,6.54]
[1730475903061,37.27055639,167.02,166.92,2.6815]
[1730475903268,2.9956,166.94,166.92,2.6815]
[1730475903477,37.27055639,167.02,166.92,2.6815]
[1730475903882,37.27055639,167.05,166.92,2.6815]
[1730475904069,37.27055639,167.05,166.92,5.6773]
[1730475904276,37.27055639,167.05,166.92,2.6815]
[1730475904477,37.27055639,167.02,166.92,2.6815]
[1730475904787,37.27055639,167.02,166.87,37.27055639]
[1730475905281,37.27055639,167.1,166.92,37.27055639]
[1730475905282,37.27055639,167.06,166.92,37.27055639]
[1730475905482,2.9954,166.97,166.92,37.27055639]
[1730475906480,2.9954,166.96,166.93,2.9958]
[1730475906680,37.27055639,167.0,166.86,37.27055639]
[1730475906873,37.27055639,166.95,166.81,37.27055639]
[1730475907379,37.27055639,167.0,166.88,2.9967]
[1730475907583,37.27055639,167.0,166.84,37.27055639]
[1730475907884,37.27055639,166.96,166.85,2.9973]
[1730475908282,2.996,166.93,166.85,2.9973]
[1730475908478,37.27055639,166.96,166.85,2.9973]
[1730475908878,2.9966,166.9,166.85,2.9973]
[1730475909074,37.27055639,166.96,166.84,40.26815639]
[1730475909282,37.27055639,166.96,166.84,37.27055639]
[1730475909484,2.9966,166.9,166.84,37.27055639]
[1730475909680,2.9966,166.9,166.86,2.9972]
[1730475909880,37.27055639,167.0,166.84,37.27055639]
[1730475910081,2.9956,166.95,166.9,2.9965]
[1730475910274,6.34,167.03,166.86,37.27055639]
[1730475910275,37.27055639,167.03,166.87,6.64]
[1730475910473,37.27055639,167.03,166.89,37.27055639]
[1730475910474,2.9956,166.95,166.89,37.27055639]
[1730475910683,37.27055639,167.1,167.0,2.9947]
[1730475910981,37.27055639,167.1,166.87,6.64]
[1730475910982,2.9932,167.09,167.02,37.27055639]
[1730475911170,37.27055639,167.11,166.97,37.27055639]
[1730475911572,37.27055639,167.11,166.96,6.64]
[1730475911573,2.9943,167.03,166.96,6.64]
[1730475911777,37.27055639,167.11,166.94,43.91055639]
[1730475912583,2.9941,167.04,166.98,2.9949]
[1730475912780,37.27055639,167.11,166.97,37.27055639]
[1730475913085,37.27055639,167.11,166.94,6.64]
[1730475913086,2.9933,167.08,167.03,2.9941]
[1730475913280,37.27055639,167.16,167.03,37.27055639]
[1730475913579,2.9925,167.13,167.03,37.27055639]
[1730475913770,37.27055639,167.16,167.0,37.27055639]
[1730475913771,37.27055639,167.14,167.0,37.27055639]
[1730475914175,2.993,167.1,167.04,2.994]
[1730475914376,37.27055639,167.16,167.04,2.994]
[1730475915880,37.27055639,167.16,167.05,2.9938]
[1730475916086,37.27055639,167.16,167.02,37.27055639]
[1730475916280,37.27055639,167.13,166.99,37.27055639]
[1730475916481,37.27055639,167.13,167.01,2.9944]
[1730475917183,2.9939,167.05,167.01,2.9944]
[1730475917383,2.9939,167.05,166.99,37.27055639]
[1730475917384,37.27055639,167.16,167.03,2.9941]
[1730475917586,37.27055639,167.16,167.02,37.27055639]
[1730475917787,37.27055639,167.16,167.02,40.26485639]
[1730475917988,37.27055639,167.11,166.96,37.27055639]
[1730475918177,37.27055639,167.06,166.92,43.91055639]
[1730475918375,37.27055639,167.06,166.94,2.9957]
[1730475918577,37.27055639,167.06,166.92,37.27055639]
[1730475918773,37.27055639,167.08,166.95,37.27055639]
[1730475918991,6.64,167.09,166.99,2.9948]
[1730475919180,37.27055639,167.14,166.98,37.27055639]
[1730475919485,6.64,167.15,167.03,2.9941]
[1730475919985,6.64,167.15,167.0,2.9946]
[1730475920182,6.64,167.15,166.98,37.27055639]
[1730475920183,37.27055639,167.11,166.98,37.27055639]
[1730475920384,5.9845,167.14,166.95,37.27055639]
[1730475920385,37.27055639,167.08,166.95,37.27055639]
[1730475920587,37.27055639,167.08,166.99,2.9948]
[1730475920780,2.9942,167.03,166.99,2.9948]
[1730475921492,2.9945,167.02,166.98,2.9951]
[1730475921680,37.27055639,167.06,166.9,37.27055639]
[1730475921879,37.27055639,167.06,166.91,1.10060714]
[1730475922093,2.9948,167.0,166.91,1.10060714]
[1730475922590,2.9947,167.01,166.97,2.9951]
[1730475922790,2.9947,167.01,166.93,37.27055639]
[1730475923002,6.64,167.06,166.93,37.27055639]
[1730475923988,6.64,167.06,166.9,37.27055639]
[1730475924284,6.64,167.06,166.95,2.9956]
[1730475924487,6.64,167.06,166.93,37.27055639]
[1730475924882,37.27055639,167.02,166.89,1.3848]
[1730475925086,37.27055639,167.02,166.9,1.10061856]
[1730475925294,37.27055639,167.02,166.94,2.9957]
[1730475925487,37.27055639,167.02,166.89,1.3848]
[1730475925785,6.64,167.06,166.92,37.27055639]
[1730475925786,2.9946,167.01,166.92,37.27055639]
[1730475925990,2.9946,167.01,166.89,1.3848]
[1730475925991,37.27055639,167.08,166.95,37.27055639]
[1730475926388,2.9942,167.03,167.0,2.9946]
[1730475926589,6.64,167.1,166.94,6.64]
[1730475926795,2.9949,166.99,166.96,2.9953]
[1730475926993,22.99781739,167.08,166.94,6.64]
[1730475927489,22.99781739,167.08,166.94,29.63781739]
[1730475927688,22.99781739,167.11,166.97,22.99781739]
[1730475928300,29.33781739,167.13,166.97,22.99781739]
[1730475928598,2.9942,167.03,167.0,2.9946]
[1730475929091,37.36707669,167.09,166.95,1.3085]
[1730475929293,43.35267669,167.11,166.97,37.36707669]
[1730475929700,43.35267669,167.11,166.99,2.9948]
[1730475929701,2.9944,167.02,166.99,2.9948]
[1730475930198,2.9938,167.06,167.02,2.9942]
[1730475930492,37.36707669,167.11,167.02,2.9942]
[1730475930687,37.36707669,167.11,167.0,2.9946]
[1730475931096,2.9942,167.03,167.0,2.9946]
[1730475931297,2.9942,167.03,166.97,37.36707669]
[1730475931298,37.36707669,167.11,166.97,37.36707669]
[1730475931997,2.9939,167.05,167.01,2.9945]
[1730475932396,37.36707669,167.11,167.01,2.9945]
[1730475932697,37.36707669,167.09,166.94,43.70707669]
[1730475933085,2.9938,167.06,167.02,2.9943]
[1730475933297,37.36707669,167.11,166.97,37.36707669]
[1730475934186,2.9935,167.07,167.02,2.9943]
[1730475934396,37.36707669,167.11,166.97,37.36707669]
[1730475935098,37.36707669,167.11,166.98,1.3679]
[1730475935298,2.9936,167.07,167.03,2.9941]
[1730475935493,2.9936,167.07,167.0,37.36707669]
[1730475935993,2.9936,167.07,167.03,2.994]
[1730475936195,37.36707669,167.14,167.0,37.36707669]
[1730475936393,37.36707669,167.17,167.03,37.36707669]
[1730475936997,6.34,167.19,167.05,37.36707669]
[1730475937396,6.34,167.19,167.08,2.9931]
[1730475937603,6.34,167.19,167.05,37.36707669]
[1730475937998,2.9925,167.13,167.09,2.9931]
[1730475938206,6.34,167.19,167.05,37.36707669]
[1730475938710,2.9927,167.12,167.08,2.9932]
[1730475939209,2.9926,167.13,167.05,37.36707669]
[1730475939401,37.36707669,167.2,167.05,37.36707669]
[1730475939801,2.9919,167.16,167.11,2.9926]
[1730475940003,37.36707669,167.2,167.05,37.36707669]
[1730475940301,37.36707669,167.17,167.05,37.36707669]
[1730475940503,6.34,167.23,167.05,37.36707669]
[1730475940504,37.36707669,167.2,167.05,37.36707669]
[1730475940892,2.9921,167.15,167.11,2.9926]
[1730475941194,37.36707669,167.2,167.05,37.36707669]
[1730475941399,2.9919,167.16,167.09,2.9931]
[1730475941709,37.36707669,167.2,167.05,37.36707669]
[1730475942006,37.36707669,167.2,167.08,2.9932]
[1730475942007,2.9927,167.12,167.08,2.9932]
[1730475942206,37.36707669,167.14,167.02,37.36707669]